bitfinex/quotes_BTCUSD_20250830
["timestamp","ask_amount","ask_price","bid_price","bid_amount"]
[1756545613845,0.61218072,108730.0,108720.0,0.27988401]
[1756545614680,0.37732182,108740.0,108720.0,0.51445602]
[1756545614893,0.62183262,108740.0,108730.0,0.27692188]
[1756545615106,0.62183262,108740.0,108730.0,0.27993188]
[1756545615315,0.62183262,108740.0,108730.0,0.28197188]
[1756545615527,0.62183262,108740.0,108730.0,0.30962288]
[1756545615741,0.62183262,108740.0,108730.0,0.34950568]
[1756545615930,0.62283262,108740.0,108730.0,0.34950568]
[1756545616166,1.05207147,108740.0,108730.0,0.34950568]
[1756545616398,1.05107147,108740.0,108730.0,0.34950568]
[1756545616606,1.05107147,108740.0,108730.0,0.30962288]
[1756545616819,1.05207147,108740.0,108730.0,0.30962288]
[1756545618020,1.05107147,108740.0,108730.0,0.30962288]
[1756545618232,1.05107147,108740.0,108730.0,0.31062288]
[1756545618632,1.05007147,108740.0,108730.0,0.31062288]
[1756545618832,1.05007147,108740.0,108730.0,0.28068101]
[1756545619027,1.05007147,108740.0,108730.0,0.28168101]
[1756545620281,1.05007147,108740.0,108730.0,0.46562288]
[1756545624254,1.05007147,108740.0,108730.0,0.28164101]
[1756545628770,1.05007147,108740.0,108730.0,0.27960101]
[1756545629363,1.05007147,108740.0,108730.0,0.28160101]
[1756545635153,0.19359377,108740.0,108730.0,0.28160101]
[1756545635366,1.05007147,108740.0,108730.0,0.28160101]
[1756545638889,1.05007147,108740.0,108730.0,0.12564101]
[1756545639098,1.05007147,108740.0,108730.0,0.27960101]
[1756545639303,1.20403147,108740.0,108730.0,0.27960101]
[1756545639452,1.20403147,108740.0,108730.0,0.27659101]
[1756545639873,1.23168247,108740.0,108730.0,0.27659101]
[1756545640721,1.23168247,108740.0,108730.0,0.27982101]
[1756545640966,1.23168247,108740.0,108730.0,0.27882101]
[1756545641589,1.23168247,108740.0,108730.0,0.27782101]
[1756545643307,1.24893391,108740.0,108730.0,0.27782101]
[1756545643845,1.24893391,108740.0,108730.0,0.181611]
[1756545644053,1.24893391,108740.0,108730.0,0.15396]
[1756545645458,1.24893728,108740.0,108730.0,0.15396]
[1756545645662,0.18394187,108730.0,108720.0,0.184842]
[1756545645881,0.61218072,108730.0,108720.0,0.27982201]
[1756545647971,0.61218072,108730.0,108720.0,0.28082201]
[1756545648222,0.61218072,108730.0,108720.0,0.28182201]
[1756545665928,0.61218072,108730.0,108720.0,0.12786201]
[1756545666141,0.61218072,108730.0,108720.0,0.24894001]
[1756545666142,1.06881592,108730.0,108720.0,0.24894001]
[1756545666325,1.06881592,108730.0,108720.0,0.09498001]
[1756545666522,1.06881592,108730.0,108720.0,0.24894001]
[1756545666734,1.08605826,108730.0,108720.0,0.24794001]
[1756545667146,1.06881592,108730.0,108720.0,0.24794001]
[1756545668240,1.06881592,108730.0,108720.0,0.24694001]
[1756545671244,1.06881592,108730.0,108720.0,0.25015001]
[1756545674627,1.06881592,108730.0,108720.0,0.25217001]
[1756545686330,0.61218072,108730.0,108720.0,0.25217001]
[1756545693705,0.18394187,108730.0,108720.0,0.25217001]
[1756545693846,0.61218072,108730.0,108720.0,0.25217001]
[1756545699110,0.18394187,108730.0,108720.0,0.25217001]
[1756545699294,0.61218072,108730.0,108720.0,0.25217001]
[1756545704581,0.18394187,108730.0,108720.0,0.25217001]
[1756545704796,0.64948362,108740.0,108720.0,0.493808]
[1756545705018,0.57849052,108740.0,108730.0,0.09298001]
[1756545705193,1.43496822,108740.0,108730.0,0.09813001]
[1756545706191,1.43596822,108740.0,108730.0,0.09813001]
[1756545706511,1.43496822,108740.0,108730.0,0.09813001]
[1756545706831,0.64948362,108740.0,108730.0,0.28207188]
[1756545706978,1.05207147,108740.0,108730.0,0.28207188]
[1756545707595,1.05107147,108740.0,108730.0,0.28207188]
[1756545708324,1.05207147,108740.0,108730.0,0.28207188]
[1756545710663,1.05207147,108740.0,108730.0,0.43595188]
[1756545711191,1.05207147,108740.0,108730.0,0.09813001]
[1756545711465,1.05207147,108740.0,108730.0,0.25201001]
[1756545712817,1.05207147,108740.0,108730.0,0.43595188]
[1756545715417,1.05207147,108740.0,108730.0,0.46360288]
[1756545715597,1.05207147,108740.0,108730.0,0.27966101]
[1756545715975,1.05207147,108740.0,108730.0,0.12578101]
[1756545716151,1.05207147,108740.0,108730.0,0.27966101]
[1756545717166,1.09056485,108740.0,108730.0,0.25001001]
[1756545717582,1.08956485,108740.0,108730.0,0.25001001]
[1756545717798,1.08856485,108740.0,108730.0,0.25001001]
[1756545717947,1.08956485,108740.0,108730.0,0.25001001]
[1756545719366,1.05007147,108740.0,108730.0,0.25001001]
[1756545719566,1.05107147,108740.0,108730.0,0.25001001]
[1756545719982,1.05007147,108740.0,108730.0,0.25101001]
[1756545720402,1.05007147,108740.0,108730.0,0.25201001]
[1756545720598,1.05007147,108740.0,108730.0,0.24886001]
[1756545721017,1.13836779,108740.0,108730.0,0.24886001]
[1756545721602,1.13836779,108740.0,108730.0,0.25190001]
[1756545721811,1.05007147,108740.0,108730.0,0.25190001]
[1756545722396,0.82761958,108740.0,108730.0,0.25190001]
[1756545722599,1.16542453,108740.0,108730.0,0.25190001]
[1756545725523,1.16538453,108740.0,108730.0,0.25190001]
[1756545725907,1.01154453,108740.0,108730.0,0.25406001]
[1756545726063,1.16538453,108740.0,108730.0,0.25406001]
[1756545726261,1.16538453,108740.0,108730.0,0.10018001]
[1756545726496,1.16538453,108740.0,108730.0,0.25402001]
[1756545726915,1.19424265,108740.0,108730.0,0.25402001]
[1756545727443,1.20360941,108740.0,108730.0,0.25402001]
[1756545727853,1.20360941,108740.0,108730.0,0.10018001]
[1756545728056,1.20360941,108740.0,108730.0,0.25402001]
[1756545729209,1.20360941,108740.0,108730.0,0.2948474]
[1756545729782,1.04976941,108740.0,108730.0,0.2948474]
[1756545731252,1.0670063,108740.0,108730.0,0.2948474]
[1756545734910,1.06701413,108740.0,108730.0,0.3224974]
[1756545739165,1.04976941,108740.0,108730.0,0.3224974]
[1756545739364,1.06701609,108740.0,108730.0,0.3224974]
[1756545745324,0.21053839,108740.0,108730.0,0.3224974]
[1756545745529,1.06701609,108740.0,108730.0,0.3224974]
[1756545747070,0.21053839,108740.0,108730.0,0.3224974]
[1756545747272,1.06701609,108740.0,108730.0,0.3224974]
[1756545748188,1.06701609,108740.0,108730.0,0.50643927]
[1756545749779,1.04976941,108740.0,108730.0,0.50643927]
[1756545749999,1.06701687,108740.0,108730.0,0.3224974]
[1756545751047,1.06701687,108740.0,108730.0,0.3224574]
[1756545752124,0.21053917,108740.0,108730.0,0.3224574]
[1756545752278,1.06701687,108740.0,108730.0,0.3224574]
[1756545752690,1.06701687,108740.0,108730.0,0.1634574]
[1756545752908,1.06701687,108740.0,108730.0,0.2896074]
[1756545753546,1.06701687,108740.0,108730.0,0.2925974]
[1756545753957,1.06701687,108740.0,108730.0,0.1387974]
[1756545754231,1.06701687,108740.0,108730.0,0.2905974]
[1756545758090,1.22081687,108740.0,108730.0,0.2905974]
[1756545759086,1.06701687,108740.0,108730.0,0.2905974]
[1756545759491,1.06701687,108740.0,108730.0,0.2927574]
[1756545760503,1.06701538,108740.0,108730.0,0.2927574]
[1756545763639,0.21053768,108740.0,108730.0,0.2927574]
[1756545763856,1.06701538,108740.0,108730.0,0.2927574]
[1756545767278,1.06701538,108740.0,108730.0,0.3204084]
[1756545771211,1.04976941,108740.0,108730.0,0.3204084]
[1756545771423,1.06701552,108740.0,108730.0,0.3204084]
[1756545771635,0.82899465,108740.0,108730.0,0.3204084]
[1756545771859,0.8289947,108740.0,108730.0,0.3204084]
[1756545772246,1.01291965,108740.0,108730.0,0.3204084]
[1756545773020,1.02243199,108740.0,108730.0,0.3204084]
[1756545780639,1.02243199,108740.0,108730.0,0.50435027]
[1756545780837,1.02243199,108740.0,108730.0,0.57318116]
[1756545781278,1.02243227,108740.0,108730.0,0.57318116]
[1756545781510,1.02243227,108740.0,108730.0,0.50435027]
[1756545781862,1.02243227,108740.0,108730.0,0.3204084]
[1756545782059,1.00518583,108740.0,108730.0,0.3204084]
[1756545782391,1.02243226,108740.0,108730.0,0.3204084]
[1756545791010,1.02243226,108740.0,108730.0,0.50435027]
[1756545791546,1.00518583,108740.0,108730.0,0.50435027]
[1756545791768,1.02243373,108740.0,108730.0,0.50435027]
[1756545795132,1.02243373,108740.0,108730.0,0.52279027]
[1756545795364,1.02243348,108740.0,108730.0,0.50435027]
[1756545798854,1.02243348,108740.0,108730.0,0.50535027]
[1756545800525,1.06716264,108740.0,108730.0,0.50635027]
[1756545802237,1.06716066,108740.0,108730.0,0.50635027]
[1756545803030,0.21068296,108740.0,108730.0,0.50635027]
[1756545803238,1.06716066,108740.0,108730.0,0.50635027]
[1756545807262,0.63892181,108740.0,108730.0,0.50635027]
[1756545807612,1.06716066,108740.0,108730.0,0.50635027]
[1756545808224,0.63892181,108740.0,108730.0,0.50635027]
[1756545811099,0.00951234,108740.0,108730.0,0.57538116]
[1756545811459,2.16862305,108750.0,108740.0,0.18392495]
[1756545811658,2.16862305,108750.0,108740.0,0.28185496]
[1756545811836,1.98471324,108750.0,108740.0,0.28185496]
[1756545812278,1.55647439,108750.0,108740.0,0.73774081]
[1756545812477,1.55647439,108750.0,108740.0,0.75920594]
[1756545812684,1.55647439,108750.0,108740.0,0.78019241]
[1756545818772,1.55647439,108750.0,108740.0,0.33048843]
[1756545819013,1.55647439,108750.0,108740.0,0.91236728]
[1756545819423,1.55647439,108750.0,108740.0,0.48412843]
[1756545819631,1.55647439,108750.0,108740.0,0.91236728]
[1756545827266,1.55647439,108750.0,108740.0,1.39060613]
[1756545828940,1.55647439,108750.0,108740.0,1.39560613]
[1756545830539,1.55647439,108750.0,108740.0,0.53912843]
[1756545830747,1.55647439,108750.0,108740.0,1.39560613]
[1756545835332,1.55647439,108750.0,108740.0,1.41404613]
[1756545835540,1.55647439,108750.0,108740.0,1.39560613]
[1756545839238,1.55647439,108750.0,108740.0,0.87912843]
[1756545839424,1.55647439,108750.0,108740.0,1.73560613]
[1756545841982,1.55647439,108750.0,108740.0,1.58196613]
[1756545842189,1.55647439,108750.0,108740.0,1.73552613]
[1756545842820,1.55647439,108750.0,108740.0,1.58196613]
[1756545843043,1.55647439,108750.0,108740.0,1.30233728]
[1756545843826,1.55647439,108750.0,108740.0,1.30535728]
[1756545844250,1.55647439,108750.0,108740.0,0.87912843]
[1756545844416,1.55647439,108750.0,108740.0,1.30736728]
[1756545845211,1.55647439,108750.0,108740.0,1.15380728]
[1756545845588,1.55647439,108750.0,108740.0,1.30736728]
[1756545845796,1.33252575,108750.0,108740.0,1.30736728]
[1756545845939,1.33252575,108750.0,108740.0,1.73560613]
[1756545850091,1.33252575,108750.0,108740.0,0.87912843]
[1756545850433,1.33252575,108750.0,108740.0,1.73560613]
[1756545851435,1.33252575,108750.0,108740.0,1.30736728]
[1756545851673,1.33252575,108750.0,108740.0,1.30732728]
[1756545864139,1.33252575,108750.0,108740.0,0.87908843]
[1756545864362,1.33252575,108750.0,108740.0,1.30732728]
[1756545865912,1.33252575,108750.0,108740.0,0.87908843]
[1756545866109,1.33252575,108750.0,108740.0,1.73556613]
[1756545866616,1.33252575,108750.0,108740.0,1.30732728]
[1756545869822,1.33252575,108750.0,108740.0,0.87908843]
[1756545870232,1.33252575,108750.0,108740.0,1.30732728]
[1756545871877,1.1281613,108750.0,108740.0,1.30732728]
[1756545874062,0.8820062,108750.0,108740.0,1.30732728]
[1756545883368,0.8820062,108750.0,108740.0,1.73556613]
[1756545885849,0.8820062,108750.0,108740.0,1.30732728]
[1756545888879,0.8820062,108750.0,108740.0,1.73556613]
[1756545894224,0.8820062,108750.0,108740.0,1.30732728]
[1756545902478,0.88176253,108750.0,108740.0,0.72556843]
[1756545902701,0.88176253,108750.0,108740.0,1.30728728]
[1756545902883,0.88176253,108750.0,108740.0,1.15179728]
[1756545903168,0.88176253,108750.0,108740.0,1.30225728]
[1756545903374,1.31000138,108750.0,108740.0,0.64959961]
[1756545903774,1.31000138,108750.0,108740.0,0.48401843]
[1756545906874,0.88176253,108750.0,108740.0,0.48697843]
[1756545907086,0.88176253,108750.0,108740.0,0.91737728]
[1756545913438,0.88176253,108750.0,108740.0,0.98809728]
[1756545915211,0.69263515,108750.0,108740.0,0.98809728]
[1756545923623,0.69263515,108750.0,108740.0,0.55985843]
[1756545923845,0.69263515,108750.0,108740.0,0.98809728]
[1756545924036,0.69263515,108750.0,108740.0,0.98593728]
[1756545924879,0.69263515,108750.0,108740.0,0.55473843]
[1756545925439,0.69263515,108750.0,108740.0,0.55772843]
[1756545926454,0.69263515,108750.0,108740.0,0.64602475]
[1756545926642,0.69263515,108750.0,108740.0,0.55772843]
[1756545927685,0.69263515,108750.0,108740.0,0.55972843]
[1756545927888,0.69263515,108750.0,108740.0,0.98371628]
[1756545934393,0.49186377,108750.0,108740.0,0.98345781]
[1756545946583,0.49186377,108750.0,108740.0,0.55521896]
[1756545946910,0.49186377,108750.0,108740.0,0.98345781]
[1756545950374,0.49186377,108750.0,108740.0,0.98341781]
[1756545953005,0.49186377,108750.0,108740.0,0.82997781]
[1756545953211,0.49186377,108750.0,108740.0,0.98341781]
[1756545954936,0.49186377,108750.0,108740.0,0.82997781]
[1756545955377,0.49186377,108750.0,108740.0,0.98341781]
[1756545956229,0.49186377,108750.0,108740.0,0.98141781]
[1756545957190,0.49186377,108750.0,108740.0,0.82797781]
[1756545957433,0.49186377,108750.0,108740.0,0.98141781]
[1756545957635,0.49186377,108750.0,108740.0,0.98345781]
[1756545959745,0.49186377,108750.0,108740.0,0.55521896]
[1756545959927,0.49186377,108750.0,108740.0,0.98345781]
[1756545960131,0.49186377,108750.0,108740.0,0.55521896]
[1756545960454,0.49186377,108750.0,108740.0,0.98345781]
[1756545960893,0.49186377,108750.0,108740.0,0.83001781]
[1756545961092,0.49186377,108750.0,108740.0,0.98345781]
[1756545963402,0.49186377,108750.0,108740.0,0.39973896]
[1756545963608,0.92010262,108750.0,108740.0,0.55018896]
[1756545963830,0.49186377,108750.0,108740.0,0.55018896]
[1756545964032,0.49186377,108750.0,108740.0,0.97842781]
[1756545964238,0.49186377,108750.0,108740.0,0.55018896]
[1756545966271,0.49186377,108750.0,108740.0,0.55315896]
[1756545966499,0.49186377,108750.0,108740.0,0.55519896]
[1756545967454,0.49186377,108750.0,108740.0,0.98343781]
[1756545976114,0.49186377,108750.0,108740.0,1.00187781]
[1756545976317,0.49186377,108750.0,108740.0,0.98343781]
[1756545981040,0.49186377,108750.0,108740.0,0.55519896]
[1756545981184,0.49186377,108750.0,108740.0,0.98343781]
[1756545981616,0.92010262,108750.0,108740.0,0.39674896]
[1756545981812,1.19230698,108750.0,108740.0,0.38031961]
[1756545982020,1.13240701,108750.0,108740.0,0.19639466]
[1756545982217,1.13240701,108750.0,108740.0,0.25142766]
[1756545982218,1.56064586,108750.0,108740.0,0.25142766]
[1756545982461,1.16005501,108750.0,108740.0,0.25142766]
[1756545982819,1.16005501,108750.0,108740.0,0.24942766]
[1756545983026,1.16005501,108750.0,108740.0,0.24642766]
[1756545983231,1.16105501,108750.0,108740.0,0.24642766]
[1756545987616,1.24935133,108750.0,108740.0,0.24642766]
[1756545988996,1.16105501,108750.0,108740.0,0.24642766]
[1756545990065,1.16105501,108750.0,108740.0,0.24945766]
[1756545992169,1.58929386,108750.0,108740.0,0.24945766]
[1756545994795,1.58929386,108750.0,108740.0,0.24642766]
[1756545998937,1.58929386,108750.0,108740.0,0.24945766]
[1756546002548,1.58929386,108750.0,108740.0,0.43554261]
[1756546004545,1.56089751,108750.0,108740.0,0.43554261]
[1756546007372,1.53324951,108750.0,108740.0,0.43554261]
[1756546008391,1.53324951,108750.0,108740.0,0.25161766]
[1756546009638,1.3470696,108750.0,108740.0,0.25161766]
[1756546011014,1.3470696,108750.0,108740.0,0.24945766]
[1756546012292,1.38360412,108750.0,108740.0,0.24945766]
[1756546012530,1.3470696,108750.0,108740.0,0.24945766]
[1756546016774,1.3470696,108750.0,108740.0,0.25141766]
[1756546017017,1.3470696,108750.0,108740.0,0.43534261]
[1756546020885,1.3470696,108750.0,108740.0,0.25141766]
[1756546021526,1.3470696,108750.0,108740.0,0.43534261]
[1756546023383,0.4905919,108750.0,108740.0,0.43534261]
[1756546023590,0.91883075,108750.0,108740.0,0.43534261]
[1756546028683,0.4905919,108750.0,108740.0,0.43534261]
[1756546028871,0.91883075,108750.0,108740.0,0.43534261]
[1756546031322,0.91883075,108750.0,108740.0,0.28194261]
[1756546031530,0.91883075,108750.0,108740.0,0.25141766]
[1756546031760,0.96443528,108750.0,108740.0,0.09605766]
[1756546032004,0.96443528,108750.0,108740.0,0.24945766]
[1756546032984,0.73492271,108750.0,108740.0,0.43534261]
[1756546033368,0.91883075,108750.0,108740.0,0.43534261]
[1756546034402,0.73492271,108750.0,108740.0,0.43534261]
[1756546038383,0.91883075,108750.0,108740.0,0.43534261]
[1756546038592,0.72596974,108750.0,108740.0,0.43534261]
[1756546041601,0.5410617,108750.0,108740.0,0.43534261]
[1756546041820,0.5410617,108750.0,108740.0,0.51119033]
[1756546041937,0.5420617,108750.0,108740.0,0.51119033]
[1756546042162,0.5410617,108750.0,108740.0,0.53883633]
[1756546042407,0.5410617,108750.0,108740.0,0.53983633]
[1756546042636,0.5410617,108750.0,108740.0,0.54183633]
[1756546043068,0.5410617,108750.0,108740.0,0.46598861]
[1756546044141,0.5410617,108750.0,108740.0,0.48692743]
[1756546047361,0.5410617,108750.0,108740.0,0.48492743]
[1756546047750,0.5410617,108750.0,108740.0,0.48592743]
[1756546048163,0.5410617,108750.0,108740.0,0.48492743]
[1756546048375,0.5410617,108750.0,108740.0,0.48692743]
[1756546052384,0.11282285,108750.0,108740.0,0.91516628]
[1756546052605,0.11282285,108750.0,108740.0,0.76176628]
[1756546052821,0.11282285,108750.0,108740.0,0.91512628]
[1756546053260,0.11282285,108750.0,108740.0,0.48688743]
[1756546055631,0.11282285,108750.0,108740.0,0.96512628]
[1756546056093,0.11282285,108750.0,108740.0,0.53688743]
[1756546056291,0.11282285,108750.0,108740.0,0.96512628]
[1756546059902,0.11282285,108750.0,108740.0,0.53688743]
[1756546060117,0.11282285,108750.0,108740.0,0.96512628]
[1756546072611,0.11282285,108750.0,108740.0,0.53688743]
[1756546072806,0.11282285,108750.0,108740.0,0.96512628]
[1756546075215,0.11282285,108750.0,108740.0,0.53688743]
[1756546075415,0.11282285,108750.0,108740.0,0.96512628]
[1756546081386,0.11282285,108750.0,108740.0,0.53684743]
[1756546081587,0.11282285,108750.0,108740.0,1.0533826]
[1756546081816,0.11282285,108750.0,108740.0,0.53684743]
[1756546085448,0.11282285,108750.0,108740.0,0.32853743]
[1756546085449,0.5410617,108750.0,108740.0,0.32853743]
[1756546085701,0.5410617,108750.0,108740.0,0.46091861]
[1756546085946,0.5410617,108750.0,108740.0,0.48185743]
[1756546086446,0.5410617,108750.0,108740.0,0.46091861]
[1756546086689,0.5410617,108750.0,108740.0,0.48185743]
[1756546089282,0.5410617,108750.0,108740.0,0.48485743]
[1756546089971,0.11282285,108750.0,108740.0,0.48185743]
[1756546090235,0.5410617,108750.0,108740.0,0.48485743]
[1756546097677,0.5410617,108750.0,108740.0,0.32853743]
[1756546097902,0.5410617,108750.0,108740.0,0.48181743]
[1756546098537,0.5410617,108750.0,108740.0,0.47981743]
[1756546099310,0.5410617,108750.0,108740.0,0.48277743]
[1756546100580,0.5410617,108750.0,108740.0,0.48377743]
[1756546101008,0.5410617,108750.0,108740.0,0.48277743]
[1756546103317,0.5420617,108750.0,108740.0,0.48277743]
[1756546104136,0.5420617,108750.0,108740.0,0.48386743]
[1756546111444,0.32612418,108750.0,108740.0,0.45787861]
[1756546111690,1.18260188,108750.0,108740.0,0.45787861]
[1756546112264,1.18160188,108750.0,108740.0,0.45787861]
[1756546112505,1.18360188,108750.0,108740.0,0.45787861]
[1756546112709,1.18460188,108750.0,108740.0,0.45787861]
[1756546114282,1.15620859,108750.0,108740.0,0.45787861]
[1756546115431,1.15620859,108750.0,108740.0,0.27395366]
[1756546116618,1.20879297,108750.0,108740.0,0.27395366]
[1756546116822,1.20879297,108750.0,108740.0,0.29238366]
[1756546117042,1.20879297,108750.0,108740.0,0.12067366]
[1756546117256,1.20879297,108750.0,108740.0,0.27395366]
[1756546118125,1.15620859,108750.0,108740.0,0.24630766]
[1756546118374,1.18460188,108750.0,108740.0,0.24630766]
[1756546118796,1.18360188,108750.0,108740.0,0.24630766]
[1756546119211,1.18160188,108750.0,108740.0,0.24630766]
[1756546120061,1.18260188,108750.0,108740.0,0.24630766]
[1756546120478,1.18460188,108750.0,108740.0,0.24630766]
[1756546122082,1.18460188,108750.0,108740.0,0.09302766]
[1756546122358,1.18460188,108750.0,108740.0,0.24630766]
[1756546124057,0.75636303,108750.0,108740.0,0.24630766]
[1756546124471,0.72796974,108750.0,108740.0,0.24630766]
[1756546124680,0.72796974,108750.0,108740.0,0.24926766]
[1756546125526,0.74310715,108750.0,108740.0,0.24926766]
[1756546126411,0.72796974,108750.0,108740.0,0.24926766]
[1756546129927,0.72796974,108750.0,108740.0,0.25142766]
[1756546133564,0.72796974,108750.0,108740.0,0.09814766]
[1756546133821,0.72796974,108750.0,108740.0,0.24926766]
[1756546134030,0.72796974,108750.0,108740.0,0.09598766]
[1756546134236,0.75314631,108750.0,108740.0,0.24926766]
[1756546134861,0.75314631,108750.0,108740.0,0.09302766]
[1756546135067,1.36305845,108750.0,108740.0,4.765e-05]
[1756546135271,1.72028398,108750.0,108740.0,4.765e-05]
[1756546135428,1.74793298,108750.0,108740.0,4.765e-05]
[1756546136874,1.74793298,108750.0,108740.0,0.01847765]
[1756546137045,1.74793298,108750.0,108740.0,4.765e-05]
[1756546138279,1.73070745,108750.0,108740.0,4.765e-05]
[1756546138478,1.74793117,108750.0,108740.0,4.765e-05]
[1756546140749,1.50185518,108750.0,108740.0,4.765e-05]
[1756546144960,1.44720038,108750.0,108740.0,4.765e-05]
[1756546146709,1.29392038,108750.0,108740.0,4.765e-05]
[1756546146930,1.44720038,108750.0,108740.0,4.765e-05]
[1756546147912,1.44719658,108750.0,108740.0,4.765e-05]
[1756546148135,1.44219658,108750.0,108740.0,4.765e-05]
[1756546149179,1.28891658,108750.0,108740.0,4.765e-05]
[1756546149397,1.44219658,108750.0,108740.0,4.765e-05]
[1756546149773,1.44219564,108750.0,108740.0,4.765e-05]
[1756546154050,1.44019564,108750.0,108740.0,4.765e-05]
[1756546155235,1.44219564,108750.0,108740.0,4.765e-05]
[1756546155443,1.44119564,108750.0,108740.0,4.765e-05]
[1756546155641,1.44219564,108750.0,108740.0,4.765e-05]
[1756546156051,1.44419564,108750.0,108740.0,4.765e-05]
[1756546157847,1.29091564,108750.0,108740.0,4.765e-05]
[1756546158052,1.44419564,108750.0,108740.0,4.765e-05]
[1756546158478,1.42497666,108750.0,108740.0,4.765e-05]
[1756546158678,1.44220056,108750.0,108740.0,4.765e-05]
[1756546158882,1.44320056,108750.0,108740.0,4.765e-05]
[1756546159952,1.44620056,108750.0,108740.0,4.765e-05]
[1756546164288,1.45268508,108750.0,108740.0,4.765e-05]
[1756546169229,1.45268072,108750.0,108740.0,4.765e-05]
[1756546169951,1.47987821,108750.0,108740.0,4.765e-05]
[1756546170185,1.32659821,108750.0,108740.0,4.765e-05]
[1756546170396,1.47987821,108750.0,108740.0,4.765e-05]
[1756546171020,1.45268072,108750.0,108740.0,4.765e-05]
[1756546171196,1.47987821,108750.0,108740.0,4.765e-05]
[1756546179038,1.4997356,108750.0,108740.0,4.765e-05]
[1756546179809,1.49973292,108750.0,108740.0,4.765e-05]
[1756546180017,1.34645292,108750.0,108740.0,4.765e-05]
[1756546180238,1.49973292,108750.0,108740.0,4.765e-05]
[1756546180655,1.49973303,108750.0,108740.0,4.765e-05]
[1756546181307,1.49673303,108750.0,108740.0,4.765e-05]
[1756546181505,1.49873303,108750.0,108740.0,4.765e-05]
[1756546181818,1.47153554,108750.0,108740.0,4.765e-05]
[1756546182048,1.46953554,108750.0,108740.0,4.765e-05]
[1756546182213,1.46953554,108750.0,108740.0,0.00297765]
[1756546182417,1.49873303,108750.0,108740.0,0.00297765]
[1756546183401,1.49873303,108750.0,108740.0,4.765e-05]
[1756546184077,1.49873303,108750.0,108740.0,0.00297765]
[1756546185457,1.49873303,108750.0,108740.0,4.765e-05]
[1756546185673,1.49873303,108750.0,108740.0,0.00297765]
[1756546186313,1.49873303,108750.0,108740.0,4.765e-05]
[1756546187365,1.49873303,108750.0,108740.0,0.00297765]
[1756546187843,1.34545303,108750.0,108740.0,0.00297765]
[1756546188067,1.49873303,108750.0,108740.0,0.00297765]
[1756546190647,1.49873784,108750.0,108740.0,0.00297765]
[1756546193199,1.34545784,108750.0,108740.0,0.00297765]
[1756546193403,1.49869784,108750.0,108740.0,0.00297765]
[1756546195392,1.49869784,108750.0,108740.0,0.00512765]
[1756546196894,1.92693669,108750.0,108740.0,4.765e-05]
[1756546197427,1.69160578,108750.0,108740.0,4.765e-05]
[1756546197802,1.68960578,108750.0,108740.0,4.765e-05]
[1756546198046,2.11984463,108750.0,108740.0,4.765e-05]
[1756546198507,2.11784463,108750.0,108740.0,4.765e-05]
[1756546198706,2.11384463,108750.0,108740.0,4.765e-05]
[1756546198963,2.12084463,108750.0,108740.0,4.765e-05]
[1756546200889,2.12084635,108750.0,108740.0,4.765e-05]
[1756546201089,2.12085094,108750.0,108740.0,4.765e-05]
[1756546201281,2.12085094,108750.0,108740.0,0.00314765]
[1756546201817,1.66743552,108750.0,108740.0,0.00529765]
[1756546203520,1.66743672,108750.0,108740.0,0.00529765]
[1756546204671,1.66743672,108750.0,108740.0,4.765e-05]
[1756546204868,2.09567557,108750.0,108740.0,4.765e-05]
[1756546206351,0.81095902,108750.0,108740.0,4.765e-05]
[1756546206560,0.81107902,108750.0,108740.0,0.00314765]
[1756546206786,1.70017225,108750.0,108740.0,0.00314765]
[1756546207014,1.72736974,108750.0,108740.0,0.00314765]
[1756546207417,2.15560859,108750.0,108740.0,0.00314765]
[1756546207620,2.15560859,108750.0,108740.0,4.765e-05]
[1756546207839,2.15560859,108750.0,108740.0,0.00314765]
[1756546208023,2.15560859,108750.0,108740.0,4.765e-05]
[1756546209635,2.2485886,108750.0,108740.0,4.765e-05]
[1756546210129,2.24212153,108750.0,108740.0,4.765e-05]
[1756546210898,2.22487479,108750.0,108740.0,4.765e-05]
[1756546211717,2.24858808,108750.0,108740.0,4.765e-05]
[1756546211898,2.23134205,108750.0,108740.0,4.765e-05]
[1756546212100,2.22487479,108750.0,108740.0,4.765e-05]
[1756546213061,2.24212082,108750.0,108740.0,4.765e-05]
[1756546213263,2.22487479,108750.0,108740.0,4.765e-05]
[1756546213468,2.23134184,108750.0,108740.0,4.765e-05]
[1756546213706,2.24858732,108750.0,108740.0,4.765e-05]
[1756546214287,2.24212027,108750.0,108740.0,4.765e-05]
[1756546214489,2.24858717,108750.0,108740.0,4.765e-05]
[1756546216287,7.27343412,108750.0,108740.0,1e-08]
[1756546216503,7.30652966,108750.0,108740.0,1e-08]
[1756546217016,7.28168271,108750.0,108740.0,1e-08]
[1756546217214,7.28168156,108750.0,108740.0,1e-08]
[1756546217455,7.3064957,108750.0,108740.0,1e-08]
[1756546218148,7.4004357,108750.0,108740.0,1e-08]
[1756546218374,7.3964357,108750.0,108740.0,1e-08]
[1756546218594,7.3994357,108750.0,108740.0,1e-08]
[1756546218807,7.4044357,108750.0,108740.0,1e-08]
[1756546220168,7.41883192,108750.0,108740.0,1e-08]
[1756546220378,7.38573638,108750.0,108740.0,1e-08]
[1756546221360,7.35853889,108750.0,108740.0,1e-08]
[1756546222829,7.38573638,108750.0,108740.0,1e-08]
[1756546224132,7.38569011,108750.0,108740.0,1e-08]
[1756546225861,7.35849262,108750.0,108740.0,1e-08]
[1756546227424,7.38569011,108750.0,108740.0,1e-08]
[1756546227879,7.38568677,108750.0,108740.0,1e-08]
[1756546228270,7.35848928,108750.0,108740.0,1e-08]
[1756546228879,7.38561954,108750.0,108740.0,1e-08]
[1756546231150,0.18397323,108720.0,108700.0,0.0721143]
[1756546231382,1.53385341,108710.0,108700.0,0.07216195]
[1756546231587,1.55106095,108710.0,108700.0,0.07426195]
[1756546232189,1.55106095,108710.0,108700.0,0.00214765]
[1756546232429,1.57871995,108710.0,108700.0,0.00314765]
[1756546233229,1.57871995,108710.0,108700.0,0.00716765]
[1756546233436,1.66701627,108710.0,108700.0,0.00716765]
[1756546233596,1.66701627,108710.0,108700.0,0.00616765]
[1756546234190,1.66701627,108710.0,108700.0,0.01016765]
[1756546234733,1.66701342,108710.0,108700.0,0.01016765]
[1756546235285,1.67628086,108710.0,108700.0,0.01016765]
[1756546236691,1.24800201,108710.0,108700.0,0.01016765]
[1756546236878,0.81976316,108710.0,108700.0,0.01016765]
[1756546237095,1.24800201,108710.0,108700.0,0.01016765]
[1756546239033,1.48549613,108710.0,108700.0,0.01016765]
[1756546239241,1.66947184,108710.0,108700.0,0.01016765]
[1756546239436,1.24123299,108710.0,108700.0,0.01016765]
[1756546239889,1.66947184,108710.0,108700.0,0.01016765]
[1756546240676,0.81299414,108710.0,108700.0,0.01016765]
[1756546241082,1.66947184,108710.0,108700.0,0.01016765]
[1756546243473,1.24123299,108710.0,108700.0,0.01016765]
[1756546244272,1.15293667,108710.0,108700.0,0.01016765]
[1756546245333,1.13573198,108710.0,108700.0,0.01016765]
[1756546245582,1.15295188,108710.0,108700.0,0.01016765]
[1756546247057,0.8197209,108710.0,108700.0,0.01016765]
[1756546248533,0.6663609,108710.0,108700.0,0.01016765]
[1756546248733,0.8198409,108710.0,108700.0,0.01016765]
[1756546249883,0.73156205,108710.0,108700.0,0.01016765]
[1756546250097,1.1598009,108710.0,108700.0,0.01016765]
[1756546253458,1.0063609,108710.0,108700.0,0.01016765]